[Event "*** Titled Tuesday Blitz"]
[Site "Chess.com"]
[Date "2021.02.02"]
[Round "4"]
[White "Gulkov_Igor"]
[Black "pavet"]
[Result "1-0"]
[WhiteElo "2507"]
[BlackElo "2318"]
[TimeControl "180+1"]
[EndTime "10:43:19 PST"]
[Termination "Gulkov_Igor won by resignation"]

1. Nf3 {[%clk 0:03:00.9]} 1... Nf6 {[%clk 0:02:55.4]} 2. c4 {[%clk 0:03:00.4]}
2... g6 {[%clk 0:02:51.5]} 3. Nc3 {[%clk 0:03:00.2]} 3... d5 {[%clk 0:02:46.2]}
4. cxd5 {[%clk 0:02:59.8]} 4... Nxd5 {[%clk 0:02:47.1]} 5. Qa4+ {[%clk
0:02:59.3]} 5... Nc6 {[%clk 0:02:40.5]} 6. Ne5 {[%clk 0:02:58.6]} 6... Qd6
{[%clk 0:02:40]} 7. Nxc6 {[%clk 0:02:57.9]} 7... Qxc6 {[%clk 0:02:40.9]} 8.
Qxc6+ {[%clk 0:02:57.1]} 8... bxc6 {[%clk 0:02:41.8]} 9. g3 {[%clk 0:02:57.3]}
9... Bg7 {[%clk 0:02:42]} 10. Bg2 {[%clk 0:02:56.7]} 10... e6 {[%clk 0:02:42.3]}
11. d3 {[%clk 0:02:54.5]} 11... Rb8 {[%clk 0:02:39.8]} 12. Kd2 {[%clk
0:02:11.6]} 12... O-O {[%clk 0:02:28.8]} 13. e4 {[%clk 0:02:02.7]} 13... Nxc3
{[%clk 0:02:21.9]} 14. bxc3 {[%clk 0:02:02.1]} 14... Rd8 {[%clk 0:02:21.7]} 15.
Kc2 {[%clk 0:02:01.7]} 15... Ba6 {[%clk 0:02:21.7]} 16. Rd1 {[%clk 0:01:59.1]}
16... Rd7 {[%clk 0:02:06.5]} 17. Be3 {[%clk 0:01:49.3]} 17... Rbd8 {[%clk
0:02:05.5]} 18. Bf1 {[%clk 0:01:43.4]} 18... h5 {[%clk 0:01:44.4]} 19. a4 {[%clk
0:01:18.2]} 19... Ra8 {[%clk 0:01:39.7]} 20. Bc5 {[%clk 0:01:07]} 20... Bf6
{[%clk 0:01:29.7]} 21. f4 {[%clk 0:01:05.4]} 21... Kg7 {[%clk 0:01:29.1]} 22. e5
{[%clk 0:01:03.4]} 22... Be7 {[%clk 0:01:29.1]} 23. Bxe7 {[%clk 0:00:59.7]}
23... Rxe7 {[%clk 0:01:29]} 24. Bg2 {[%clk 0:00:59.6]} 24... h4 {[%clk
0:01:29.1]} 25. Bxc6 {[%clk 0:00:57.9]} 25... Rb8 {[%clk 0:01:01.9]} 26. Rab1
{[%clk 0:00:55.3]} 26... Rd8 {[%clk 0:00:50.6]} 27. d4 {[%clk 0:00:48.5]} 27...
f6 {[%clk 0:00:46.4]} 28. exf6+ {[%clk 0:00:46]} 28... Kxf6 {[%clk 0:00:46.3]}
29. Re1 {[%clk 0:00:46.1]} 29... hxg3 {[%clk 0:00:45.8]} 30. hxg3 {[%clk
0:00:45.7]} 30... Rh8 {[%clk 0:00:46.3]} 31. Rh1 {[%clk 0:00:45.1]} 31... Reh7
{[%clk 0:00:46.3]} 32. Rxh7 {[%clk 0:00:44.5]} 32... Rxh7 {[%clk 0:00:47.2]} 33.
Rh1 {[%clk 0:00:44.1]} 33... Rxh1 {[%clk 0:00:44.6]} 34. Bxh1 {[%clk 0:00:42.7]}
34... g5 {[%clk 0:00:44.1]} 35. Kd2 {[%clk 0:00:40.9]} 35... gxf4 {[%clk
0:00:44]} 36. gxf4 {[%clk 0:00:40.5]} 36... Bc4 {[%clk 0:00:43.8]} 37. a5 {[%clk
0:00:40.1]} 37... Ke7 {[%clk 0:00:43.2]} 38. Ke3 {[%clk 0:00:39.8]} 38... Kd6
{[%clk 0:00:43.3]} 39. Be4 {[%clk 0:00:37.9]} 39... c5 {[%clk 0:00:38.9]} 40.
Bc2 {[%clk 0:00:32.5]} 40... Bd5 {[%clk 0:00:36.8]} 41. Ba4 {[%clk 0:00:31.1]}
41... Bc4 {[%clk 0:00:36.5]} 42. Be8 {[%clk 0:00:30]} 42... Bd5 {[%clk
0:00:35.1]} 43. Bf7 {[%clk 0:00:28.8]} 43... Bc6 {[%clk 0:00:29.9]} 44. Bg6
{[%clk 0:00:26.6]} 44... Bd5 {[%clk 0:00:28.5]} 45. Be4 {[%clk 0:00:26]} 45...
Bc4 {[%clk 0:00:28.2]} 46. Kf2 {[%clk 0:00:25.1]} 46... cxd4 {[%clk 0:00:25.3]}
47. cxd4 {[%clk 0:00:24.6]} 47... Bb3 {[%clk 0:00:24.5]} 48. Kg3 {[%clk
0:00:24.4]} 48... Bd5 {[%clk 0:00:22]} 49. Kf3 {[%clk 0:00:22]} 49... Bc4 {[%clk
0:00:20.7]} 50. Ke3 {[%clk 0:00:22]} 50... Bb3 {[%clk 0:00:20.2]} 51. Kd2 {[%clk
0:00:21.9]} 51... Bc4 {[%clk 0:00:20.2]} 52. Kc3 {[%clk 0:00:21.9]} 52... Bb5
{[%clk 0:00:20.5]} 53. Kb4 {[%clk 0:00:21.5]} 53... Be2 {[%clk 0:00:20.3]} 54.
Kc3 {[%clk 0:00:20.6]} 54... Bf1 {[%clk 0:00:20.7]} 55. Bd3 {[%clk 0:00:20]}
55... Bg2 {[%clk 0:00:20.9]} 56. Bc4 {[%clk 0:00:20]} 56... Bc6 {[%clk
0:00:20.9]} 57. Kb4 {[%clk 0:00:19.7]} 57... Be4 {[%clk 0:00:20.9]} 58. Kb5
{[%clk 0:00:19.5]} 58... Bb7 {[%clk 0:00:20.9]} 59. Bd3 {[%clk 0:00:19]} 59...
Bc8 {[%clk 0:00:21]} 60. Be4 {[%clk 0:00:18.7]} 60... Kc7 {[%clk 0:00:16.5]} 61.
Kc5 {[%clk 0:00:18.4]} 61... Bd7 {[%clk 0:00:16.9]} 62. d5 {[%clk 0:00:18.3]}
62... exd5 {[%clk 0:00:17.1]} 63. Bxd5 {[%clk 0:00:18.5]} 63... Bc8 {[%clk
0:00:17.5]} 64. Be4 {[%clk 0:00:18.5]} 64... Be6 {[%clk 0:00:17.6]} 65. f5
{[%clk 0:00:18.3]} 65... Bf7 {[%clk 0:00:18.5]} 66. f6 {[%clk 0:00:18.2]} 66...
Be6 {[%clk 0:00:17.5]} 67. Bd5 {[%clk 0:00:18]} 67... Bxd5 {[%clk 0:00:17.6]}
68. Kxd5 {[%clk 0:00:17.7]} 68... Kd7 {[%clk 0:00:16.6]} 69. Kc5 {[%clk
0:00:17.5]} 69... Ke6 {[%clk 0:00:17]} 70. Kc6 {[%clk 0:00:17.4]} 70... Kxf6
{[%clk 0:00:17.9]} 71. Kb7 {[%clk 0:00:17]} 71... Ke7 {[%clk 0:00:18.6]} 72.
Kxa7 {[%clk 0:00:16.9]} 72... Kd7 {[%clk 0:00:19.5]} 73. Kb7 {[%clk 0:00:16.8]}
1-0

[Event "*** Titled Tuesday Blitz"]
[Site "Chess.com"]
[Date "2021.02.02"]
[Round "4"]
[White "VladaSviridova"]
[Black "ailime26"]
[Result "0-1"]
[WhiteElo "2255"]
[BlackElo "2068"]
[TimeControl "180+1"]
[EndTime "10:43:20 PST"]
[Termination "ailime26 won on time"]

1. d4 {[%clk 0:03:00.9]} 1... d5 {[%clk 0:02:58.1]} 2. c4 {[%clk 0:03:01.1]}
2... e6 {[%clk 0:02:56.5]} 3. Nf3 {[%clk 0:03:01.7]} 3... Nf6 {[%clk 0:02:28]}
4. Nc3 {[%clk 0:03:00.6]} 4... Be7 {[%clk 0:02:24.7]} 5. Bf4 {[%clk 0:02:59.1]}
5... O-O {[%clk 0:02:21.4]} 6. e3 {[%clk 0:02:58.4]} 6... b6 {[%clk 0:02:20.8]}
7. cxd5 {[%clk 0:02:57.3]} 7... Nxd5 {[%clk 0:02:17.3]} 8. Nxd5 {[%clk
0:02:56.9]} 8... Qxd5 {[%clk 0:02:15]} 9. Bd3 {[%clk 0:02:56.9]} 9... Bb7 {[%clk
0:02:12.4]} 10. O-O {[%clk 0:02:38.7]} 10... c5 {[%clk 0:02:04.5]} 11. Qc2
{[%clk 0:02:21]} 11... Qh5 {[%clk 0:01:58.9]} 12. Be4 {[%clk 0:02:15.1]} 12...
Bxe4 {[%clk 0:01:48.8]} 13. Qxe4 {[%clk 0:02:14.4]} 13... Nd7 {[%clk 0:01:48.9]}
14. Qb7 {[%clk 0:01:58.7]} 14... Qd5 {[%clk 0:01:42.6]} 15. Qxd5 {[%clk
0:01:56.8]} 15... exd5 {[%clk 0:01:42.5]} 16. dxc5 {[%clk 0:01:55.9]} 16... bxc5
{[%clk 0:01:39]} 17. Rfd1 {[%clk 0:01:55.6]} 17... Nb6 {[%clk 0:01:35]} 18. Rac1
{[%clk 0:01:50]} 18... Rfd8 {[%clk 0:01:30.5]} 19. b3 {[%clk 0:01:42.2]} 19...
Rac8 {[%clk 0:01:27]} 20. a4 {[%clk 0:01:37.1]} 20... a5 {[%clk 0:01:05.1]} 21.
Ne5 {[%clk 0:01:34.6]} 21... c4 {[%clk 0:01:01.4]} 22. bxc4 {[%clk 0:01:30.9]}
22... dxc4 {[%clk 0:00:57.3]} 23. Rxd8+ {[%clk 0:01:25]} 23... Rxd8 {[%clk
0:00:55.6]} 24. Nc6 {[%clk 0:01:17.7]} 24... Rd7 {[%clk 0:00:54.3]} 25. h3
{[%clk 0:00:54.2]} 25... Ba3 {[%clk 0:00:44.2]} 26. Rb1 {[%clk 0:00:48.6]} 26...
Nxa4 {[%clk 0:00:27.7]} 27. Ra1 {[%clk 0:00:38.9]} 27... Bb2 {[%clk 0:00:09.6]}
28. Rxa4 {[%clk 0:00:36.1]} 28... c3 {[%clk 0:00:09.5]} 29. Be5 {[%clk
0:00:27.7]} 29... f6 {[%clk 0:00:05.2]} 30. Bd4 {[%clk 0:00:26.1]} 30... Rc7
{[%clk 0:00:04.6]} 31. Nxa5 {[%clk 0:00:20.2]} 31... Rc8 {[%clk 0:00:01.8]} 32.
Nc4 {[%clk 0:00:19.6]} 32... Rb8 {[%clk 0:00:01.5]} 33. Nxb2 {[%clk 0:00:12.8]}
33... cxb2 {[%clk 0:00:02.4]} 34. Bxb2 {[%clk 0:00:12.7]} 34... Rxb2 {[%clk
0:00:03.3]} 35. Ra7 {[%clk 0:00:12.9]} 35... Rb1+ {[%clk 0:00:04.2]} 36. Kh2
{[%clk 0:00:12.6]} 36... h6 {[%clk 0:00:05.1]} 37. Kg3 {[%clk 0:00:12.8]} 37...
Kh7 {[%clk 0:00:06]} 38. h4 {[%clk 0:00:13.1]} 38... Kg6 {[%clk 0:00:06.9]} 39.
Kf3 {[%clk 0:00:12.7]} 39... Kh5 {[%clk 0:00:07.8]} 40. g3 {[%clk 0:00:12.6]}
40... Kg6 {[%clk 0:00:08]} 41. g4 {[%clk 0:00:11.9]} 41... Kh7 {[%clk
0:00:08.3]} 42. h5 {[%clk 0:00:12.1]} 42... Rb5 {[%clk 0:00:09.2]} 43. Kg3
{[%clk 0:00:12]} 43... Rg5 {[%clk 0:00:10.1]} 44. f4 {[%clk 0:00:11.9]} 44...
Rb5 {[%clk 0:00:11]} 45. Kf3 {[%clk 0:00:12.3]} 45... Kg8 {[%clk 0:00:11.2]} 46.
Rc7 {[%clk 0:00:12.1]} 46... Kf8 {[%clk 0:00:11.3]} 47. Rd7 {[%clk 0:00:12.3]}
47... Kg8 {[%clk 0:00:11.3]} 48. Ke4 {[%clk 0:00:12.2]} 48... Ra5 {[%clk
0:00:11.3]} 49. f5 {[%clk 0:00:11.4]} 49... Re5+ {[%clk 0:00:11.4]} 50. Kd4
{[%clk 0:00:11.3]} 50... Ra5 {[%clk 0:00:11.9]} 51. e4 {[%clk 0:00:11.4]} 51...
Re5 {[%clk 0:00:12]} 52. Rd5 {[%clk 0:00:10.9]} 52... Re7 {[%clk 0:00:11.8]} 53.
e5 {[%clk 0:00:10.8]} 53... fxe5+ {[%clk 0:00:12]} 54. Rxe5 {[%clk 0:00:11.1]}
54... Rd7+ {[%clk 0:00:12.5]} 55. Ke4 {[%clk 0:00:10.9]} 55... Kf7 {[%clk
0:00:13.1]} 56. Kf4 {[%clk 0:00:10.6]} 56... Ra7 {[%clk 0:00:13.1]} 57. Rb5
{[%clk 0:00:10.6]} 57... Ra4+ {[%clk 0:00:13.1]} 58. Ke5 {[%clk 0:00:05.4]}
58... Rxg4 {[%clk 0:00:12.7]} 59. Rb7+ {[%clk 0:00:05.1]} 59... Kg8 {[%clk
0:00:12.4]} 60. Ke6 {[%clk 0:00:03.7]} 60... Re4+ {[%clk 0:00:12.6]} 61. Kd5
{[%clk 0:00:03.9]} 61... Rh4 {[%clk 0:00:12.6]} 62. Ke6 {[%clk 0:00:02.6]} 62...
Rxh5 {[%clk 0:00:13]} 63. Rb8+ {[%clk 0:00:01.5]} 63... Kh7 {[%clk 0:00:13.1]}
0-1

[Event "*** Titled Tuesday Blitz"]
[Site "Chess.com"]
[Date "2021.02.02"]
[Round "4"]
[White "cassoulet"]
[Black "hansen"]
[Result "0-1"]
[WhiteElo "2758"]
[BlackElo "2907"]
[TimeControl "180+1"]
[EndTime "10:43:25 PST"]
[Termination "hansen won on time"]

1. e4 {[%clk 0:03:00.9]} 1... c5 {[%clk 0:02:58.3]} 2. Nf3 {[%clk 0:03:00.9]}
2... e6 {[%clk 0:02:58.4]} 3. d4 {[%clk 0:03:00.8]} 3... cxd4 {[%clk 0:02:58.8]}
4. Nxd4 {[%clk 0:03:01.7]} 4... a6 {[%clk 0:02:58.9]} 5. Nc3 {[%clk 0:03:02.3]}
5... Qc7 {[%clk 0:02:59.2]} 6. Bd3 {[%clk 0:03:02.9]} 6... Nf6 {[%clk
0:02:59.4]} 7. Be3 {[%clk 0:03:03.5]} 7... Bb4 {[%clk 0:02:59]} 8. O-O {[%clk
0:03:03.3]} 8... O-O {[%clk 0:02:59.1]} 9. Na4 {[%clk 0:02:59.2]} 9... b5 {[%clk
0:02:48.5]} 10. a3 {[%clk 0:02:57.6]} 10... Be7 {[%clk 0:02:46.7]} 11. Nc3
{[%clk 0:02:57.5]} 11... Bb7 {[%clk 0:02:43.6]} 12. f4 {[%clk 0:02:56]} 12... d6
{[%clk 0:02:44]} 13. Qf3 {[%clk 0:02:55.5]} 13... Nbd7 {[%clk 0:02:44.1]} 14.
Rae1 {[%clk 0:02:55.9]} 14... Nc5 {[%clk 0:02:44.4]} 15. Bf2 {[%clk 0:02:56]}
15... d5 {[%clk 0:02:36]} 16. e5 {[%clk 0:02:50.2]} 16... Nfe4 {[%clk
0:02:36.6]} 17. Bxe4 {[%clk 0:02:40.8]} 17... Nxe4 {[%clk 0:02:35.1]} 18. Nxe4
{[%clk 0:02:39.9]} 18... dxe4 {[%clk 0:02:35.9]} 19. Qh3 {[%clk 0:02:32.9]}
19... Rad8 {[%clk 0:02:03.4]} 20. c3 {[%clk 0:02:32.8]} 20... Bd5 {[%clk
0:01:54.8]} 21. f5 {[%clk 0:02:27.4]} 21... Qxe5 {[%clk 0:01:48.6]} 22. Bg3
{[%clk 0:02:26.8]} 22... Qf6 {[%clk 0:01:49.2]} 23. fxe6 {[%clk 0:02:20.6]}
23... Qg6 {[%clk 0:01:46.2]} 24. exf7+ {[%clk 0:02:15.4]} 24... Rxf7 {[%clk
0:01:46.4]} 25. Rxf7 {[%clk 0:02:15.1]} 25... Bxf7 {[%clk 0:01:43.9]} 26. Qf5
{[%clk 0:02:04.4]} 26... Bd5 {[%clk 0:01:38.9]} 27. Qe5 {[%clk 0:01:47.2]} 27...
Bf6 {[%clk 0:01:31.7]} 28. Qc7 {[%clk 0:01:46.9]} 28... h5 {[%clk 0:01:25.9]}
29. Re3 {[%clk 0:01:22.7]} 29... Rf8 {[%clk 0:01:16.9]} 30. Qd6 {[%clk
0:01:15.9]} 30... Bc4 {[%clk 0:01:04.1]} 31. h3 {[%clk 0:01:06.7]} 31... Rd8
{[%clk 0:00:53.1]} 32. Qf4 {[%clk 0:01:01.4]} 32... Bg5 {[%clk 0:00:45.6]} 33.
Qxe4 {[%clk 0:01:01]} 33... Bxe3+ {[%clk 0:00:46.3]} 34. Qxe3 {[%clk 0:01:01.9]}
34... Bd5 {[%clk 0:00:38.1]} 35. h4 {[%clk 0:00:45.2]} 35... Re8 {[%clk
0:00:33.8]} 36. Qf4 {[%clk 0:00:45.3]} 36... Rf8 {[%clk 0:00:29.1]} 37. Qe5
{[%clk 0:00:40.9]} 37... Qb1+ {[%clk 0:00:21.1]} 38. Kh2 {[%clk 0:00:39.8]}
38... Qe4 {[%clk 0:00:19.7]} 39. Qxe4 {[%clk 0:00:35]} 39... Bxe4 {[%clk
0:00:20.6]} 40. Kg1 {[%clk 0:00:33.5]} 40... Bd3 {[%clk 0:00:20.4]} 41. Bf2
{[%clk 0:00:32.4]} 41... Kf7 {[%clk 0:00:19.7]} 42. Nc6 {[%clk 0:00:30.3]} 42...
Re8 {[%clk 0:00:18.7]} 43. Bd4 {[%clk 0:00:29.4]} 43... Re1+ {[%clk 0:00:18.9]}
44. Kf2 {[%clk 0:00:29.2]} 44... Rf1+ {[%clk 0:00:17.3]} 45. Ke3 {[%clk
0:00:28.1]} 45... Bc4 {[%clk 0:00:17.4]} 46. Ne5+ {[%clk 0:00:17.8]} 46... Ke6
{[%clk 0:00:17.8]} 47. Nf3 {[%clk 0:00:17.7]} 47... Rb1 {[%clk 0:00:15.7]} 48.
b4 {[%clk 0:00:17.3]} 48... g6 {[%clk 0:00:14.2]} 49. Kf4 {[%clk 0:00:17.1]}
49... Bd5 {[%clk 0:00:12.8]} 50. Ng5+ {[%clk 0:00:15.9]} 50... Kd7 {[%clk
0:00:11.7]} 51. g3 {[%clk 0:00:16.4]} 51... Re1 {[%clk 0:00:11.1]} 52. Nh7
{[%clk 0:00:15.4]} 52... Re4+ {[%clk 0:00:10.8]} 53. Kg5 {[%clk 0:00:15.1]}
53... Rg4+ {[%clk 0:00:11.2]} 54. Kh6 {[%clk 0:00:14.1]} 54... Rxg3 {[%clk
0:00:11.4]} 55. Ng5 {[%clk 0:00:14.4]} 55... Rg4 {[%clk 0:00:09.7]} 56. Bf2
{[%clk 0:00:12.4]} 56... Rg2 {[%clk 0:00:09.6]} 57. Bd4 {[%clk 0:00:12.5]} 57...
Rh2 {[%clk 0:00:09.8]} 58. Kxg6 {[%clk 0:00:11.1]} 58... Rxh4 {[%clk 0:00:09.8]}
59. Nh7 {[%clk 0:00:11.6]} 59... Rh1 {[%clk 0:00:08.7]} 60. Nf6+ {[%clk
0:00:11.3]} 60... Kc6 {[%clk 0:00:09.3]} 61. Nxh5 {[%clk 0:00:10.7]} 61... Bf7+
{[%clk 0:00:09.8]} 62. Kxf7 {[%clk 0:00:10.9]} 62... Rxh5 {[%clk 0:00:10.4]} 63.
Kf6 {[%clk 0:00:11.5]} 63... Kd5 {[%clk 0:00:10.8]} 64. Ke7 {[%clk 0:00:11.5]}
64... Rh7+ {[%clk 0:00:09.8]} 65. Kd8 {[%clk 0:00:11.3]} 65... Rh4 {[%clk
0:00:10.7]} 66. Kc7 {[%clk 0:00:11.4]} 66... Rh6 {[%clk 0:00:10.2]} 67. Kb7
{[%clk 0:00:11.5]} 67... Kc4 {[%clk 0:00:10.6]} 68. Bb6 {[%clk 0:00:11.3]} 68...
Kxc3 {[%clk 0:00:06.5]} 69. Kxa6 {[%clk 0:00:11.5]} 69... Kc4 {[%clk 0:00:07.2]}
70. Ka5 {[%clk 0:00:11]} 70... Rh3 {[%clk 0:00:07.1]} 71. Bc5 {[%clk 0:00:09.4]}
71... Rxa3+ {[%clk 0:00:07.5]} 72. Kb6 {[%clk 0:00:09.8]} 72... Rb3 {[%clk
0:00:07.2]} 73. Ka5 {[%clk 0:00:09.7]} 73... Ra3+ {[%clk 0:00:07.7]} 74. Kb6
{[%clk 0:00:09.8]} 74... Ra4 {[%clk 0:00:08.6]} 75. Kc6 {[%clk 0:00:04.7]} 75...
Rxb4 {[%clk 0:00:09]} 0-1

[Event "*** Titled Tuesday Blitz"]
[Site "Chess.com"]
[Date "2021.02.02"]
[Round "4"]
[White "K_A_S_T_O_R"]
[Black "Machidon"]
[Result "0-1"]
[WhiteElo "2741"]
[BlackElo "2558"]
[TimeControl "180+1"]
[EndTime "10:43:25 PST"]
[Termination "Machidon won on time"]

1. e4 {[%clk 0:03:00.9]} 1... c6 {[%clk 0:02:59.7]} 2. c4 {[%clk 0:03:00]} 2...
d5 {[%clk 0:03:00.6]} 3. cxd5 {[%clk 0:03:00.5]} 3... cxd5 {[%clk 0:03:01.5]} 4.
exd5 {[%clk 0:03:01.4]} 4... Nf6 {[%clk 0:03:01.9]} 5. Nc3 {[%clk 0:03:01.9]}
5... g6 {[%clk 0:03:00.2]} 6. Bc4 {[%clk 0:03:00.9]} 6... Bg7 {[%clk 0:03:00.1]}
7. Nf3 {[%clk 0:03:01.3]} 7... O-O {[%clk 0:03:00.1]} 8. O-O {[%clk 0:03:00.8]}
8... Nbd7 {[%clk 0:02:54.8]} 9. d3 {[%clk 0:02:59.8]} 9... a6 {[%clk 0:02:43.5]}
10. a4 {[%clk 0:02:58.6]} 10... b6 {[%clk 0:02:44.1]} 11. h3 {[%clk 0:02:36.3]}
11... Bb7 {[%clk 0:02:43.8]} 12. Be3 {[%clk 0:02:36.8]} 12... Ne8 {[%clk
0:02:14.9]} 13. Re1 {[%clk 0:02:34.5]} 13... Nd6 {[%clk 0:02:06.9]} 14. Ba2
{[%clk 0:02:21.5]} 14... b5 {[%clk 0:02:01.5]} 15. axb5 {[%clk 0:02:18.7]} 15...
axb5 {[%clk 0:02:00.7]} 16. Qd2 {[%clk 0:02:13.4]} 16... Nb6 {[%clk 0:01:40.8]}
17. b4 {[%clk 0:01:45.4]} 17... Nxd5 {[%clk 0:01:27.1]} 18. Bxd5 {[%clk
0:01:40.4]} 18... Rxa1 {[%clk 0:01:28]} 19. Rxa1 {[%clk 0:01:38.1]} 19... Bxd5
{[%clk 0:01:28]} 20. Nd4 {[%clk 0:01:23.6]} 20... Qd7 {[%clk 0:01:23.3]} 21.
Nxd5 {[%clk 0:01:21.6]} 21... Bxd4 {[%clk 0:01:18.7]} 22. Bxd4 {[%clk
0:01:14.1]} 22... Nf5 {[%clk 0:01:18.8]} 23. Nf6+ {[%clk 0:01:10.2]} 23... exf6
{[%clk 0:01:17.8]} 24. Bxf6 {[%clk 0:01:11.1]} 24... Re8 {[%clk 0:01:12.6]} 25.
Re1 {[%clk 0:01:09.2]} 25... Re6 {[%clk 0:00:41.3]} 26. Bb2 {[%clk 0:01:07.8]}
26... h5 {[%clk 0:00:28.8]} 27. Rxe6 {[%clk 0:01:04.6]} 27... Qxe6 {[%clk
0:00:29.7]} 28. Qc3 {[%clk 0:01:04.7]} 28... Kf8 {[%clk 0:00:20.5]} 29. Qc5+
{[%clk 0:00:57.7]} 29... Kg8 {[%clk 0:00:16.1]} 30. Kf1 {[%clk 0:00:51.6]} 30...
Qd7 {[%clk 0:00:15]} 31. Ke2 {[%clk 0:00:49.6]} 31... h4 {[%clk 0:00:13.7]} 32.
Qe5 {[%clk 0:00:45.7]} 32... Kf8 {[%clk 0:00:13.1]} 33. Kd2 {[%clk 0:00:41.1]}
33... Qc6 {[%clk 0:00:08.4]} 34. Qe4 {[%clk 0:00:35.6]} 34... Qd7 {[%clk
0:00:07.7]} 35. Qa8+ {[%clk 0:00:28.4]} 35... Ke7 {[%clk 0:00:06.9]} 36. Bc3
{[%clk 0:00:28.9]} 36... Ke6 {[%clk 0:00:04.4]} 37. Qe4+ {[%clk 0:00:26.5]}
37... Kd6 {[%clk 0:00:04.7]} 38. Be5+ {[%clk 0:00:26]} 38... Ke7 {[%clk
0:00:04.4]} 39. Bf4+ {[%clk 0:00:25.1]} 39... Qe6 {[%clk 0:00:04.6]} 40. g4
{[%clk 0:00:20.2]} 40... hxg3 {[%clk 0:00:04]} 41. fxg3 {[%clk 0:00:20.5]} 41...
f6 {[%clk 0:00:03.3]} 42. g4 {[%clk 0:00:19.9]} 42... Qxe4 {[%clk 0:00:03.5]}
43. dxe4 {[%clk 0:00:19.6]} 43... Nd4 {[%clk 0:00:04.1]} 44. Kd3 {[%clk
0:00:18]} 44... Nc6 {[%clk 0:00:04.6]} 45. Bd2 {[%clk 0:00:17.7]} 45... g5
{[%clk 0:00:04.6]} 46. Bc3 {[%clk 0:00:16.9]} 46... Ke6 {[%clk 0:00:05.1]} 47.
Ke3 {[%clk 0:00:16.9]} 47... Ne7 {[%clk 0:00:05.2]} 48. Kd4 {[%clk 0:00:16.2]}
48... Kd6 {[%clk 0:00:05.1]} 49. Ke3 {[%clk 0:00:14.1]} 49... Ke6 {[%clk
0:00:04.8]} 50. Kf3 {[%clk 0:00:10.8]} 50... Nc6 {[%clk 0:00:04.9]} 51. Kg3
{[%clk 0:00:10.2]} 51... Ne7 {[%clk 0:00:04]} 52. h4 {[%clk 0:00:10.3]} 52...
gxh4+ {[%clk 0:00:04.9]} 53. Kxh4 {[%clk 0:00:10.7]} 53... Ng6+ {[%clk
0:00:05.4]} 54. Kg3 {[%clk 0:00:09]} 54... Ne7 {[%clk 0:00:05.7]} 55. Bd4 {[%clk
0:00:08.3]} 55... Nc6 {[%clk 0:00:05.8]} 56. Bc3 {[%clk 0:00:08.8]} 56... Ne7
{[%clk 0:00:04.7]} 57. Kf3 {[%clk 0:00:09.2]} 57... Nc6 {[%clk 0:00:04.2]} 58.
Kf4 {[%clk 0:00:08.5]} 58... Ne7 {[%clk 0:00:03.6]} 59. Ke3 {[%clk 0:00:07.9]}
59... Nc6 {[%clk 0:00:03.8]} 60. Be1 {[%clk 0:00:08.4]} 60... Ke7 {[%clk
0:00:04.1]} 61. Kf4 {[%clk 0:00:08.3]} 61... Ke6 {[%clk 0:00:04.5]} 62. Bc3
{[%clk 0:00:07.9]} 62... Ne7 {[%clk 0:00:04.6]} 63. Kg3 {[%clk 0:00:07.9]} 63...
Nc6 {[%clk 0:00:04.7]} 64. Kh4 {[%clk 0:00:08.2]} 64... Ne7 {[%clk 0:00:05.1]}
65. Kh5 {[%clk 0:00:08.4]} 65... Kf7 {[%clk 0:00:05.6]} 66. e5 {[%clk
0:00:04.6]} 66... Nd5 {[%clk 0:00:05.1]} 0-1